fUST/lending_fUST_20240222
["ID","MTS","AMOUNT","RATE_DAILY","PERIOD"]
[314881213,1708613442047,-1293.8,0.00019178,2]
[314881214,1708613442057,-500.0,0.00019178,2]
[314881215,1708613442066,-500.0,0.00019178,2]
[314881216,1708613442076,-500.0,0.00019178,2]
[314881217,1708613442085,-500.0,0.00019178,2]
[314881218,1708613442094,-642.62,0.00019178,2]
[314881219,1708613442103,-500.0,0.00019178,2]
[314881220,1708613442113,-10568.47,0.00019178,2]
[314881221,1708613442123,-282.82142789,0.00019178,2]
[314881222,1708613442132,-1629.45,0.00019178,2]
[314881223,1708613442142,-500.0,0.00019178,2]
[314881224,1708613442154,-500.0,0.00019178,2]
[314881225,1708613442166,-500.0,0.00019178,2]
[314881226,1708613442175,-500.0,0.00019178,2]
[314881227,1708613442186,-500.0,0.00019178,2]
[314881228,1708613442312,-2945.2,0.00019178,2]
[314881229,1708613442323,-500.0,0.00019178,2]
[314881230,1708613442334,-1510.22,0.00019178,2]
[314881231,1708613442344,-500.0,0.00019178,2]
[314881232,1708613442354,-500.0,0.00019178,2]
[314881233,1708613442364,-500.0,0.00019178,2]
[314881234,1708613442374,-500.0,0.00019178,2]
[314881235,1708613442384,-500.87689095,0.00019178,2]
[314881236,1708613442394,-500.0,0.00019178,2]
[314881237,1708613442403,-500.0,0.00019178,2]
[314881238,1708613442413,-12314.97,0.00019178,2]
[314881239,1708613442423,-500.0,0.00019178,2]
[314881240,1708613442433,-413.50977388,0.00019178,2]
[314881241,1708613442443,-3219.86,0.00019178,2]
[314881242,1708613442457,-500.0,0.00019178,2]
[314881243,1708613442468,-500.0,0.00019178,2]
[314881244,1708613442478,-926.51,0.00019178,2]
[314881245,1708613442488,-500.0,0.00019178,2]
[314881246,1708613442498,-500.0,0.00019178,2]
[314881247,1708613442508,-500.63186668,0.00019178,2]
[314881248,1708613442518,-500.0,0.00019178,2]
[314881249,1708613442527,-500.9305449,0.00019178,2]
[314881250,1708613442537,-500.0,0.00019178,2]
[314881251,1708613442547,-500.0,0.00019178,2]
[314881252,1708613442556,-500.0,0.00019178,2]
[314881253,1708613442566,-500.97740635,0.00019178,2]
[314881254,1708613442575,-500.0,0.00019178,2]
[314881255,1708613442584,-500.0,0.00019178,2]
[314881256,1708613442594,-500.0,0.00019178,2]
[314881257,1708613442604,-600.48,0.00019178,2]
[314881258,1708613442613,-500.0,0.00019178,2]
[314881259,1708613442622,-500.0,0.00019178,2]
[314881260,1708613442632,-2269.9,0.00019178,2]
[314881261,1708613442642,-500.0,0.00019178,2]
[314881262,1708613442652,-945.29,0.00019178,2]
[314881263,1708613442662,-501.15146414,0.00019178,2]
[314881264,1708613442672,-500.0,0.00019178,2]
[314881265,1708613442681,-500.0,0.00019178,2]
[314881266,1708613442691,-500.0,0.00019178,2]
[314881267,1708613442705,-500.0,0.00019178,2]
[314881268,1708613442714,-450.66348455,0.00019178,2]
[314881269,1708613442723,-500.0,0.00019178,2]
[314881270,1708613442732,-500.0,0.00019178,2]
[314881271,1708613442741,-1389.08,0.00019178,2]
[314881272,1708613442750,-1389.08,0.00019178,2]
[314881273,1708613442759,-1389.08,0.00019178,2]
[314881274,1708613442768,-1389.08,0.00019178,2]
[314881275,1708613442778,-500.0,0.00019178,2]
[314881276,1708613442788,-500.0,0.00019178,2]
[314881278,1708613442797,-481.42758559,0.00019178,2]
[314881280,1708613442807,-1648.75,0.00019178,2]
[314881281,1708613442816,-500.0,0.00019178,2]
[314881283,1708613442826,-500.0,0.00019178,2]
[314881285,1708613442836,-478.9119605,0.00019178,2]
[314881287,1708613442846,-627.65,0.00019178,2]
[314881288,1708613442856,-500.0,0.00019178,2]
[314881290,1708613442866,-500.0,0.00019178,2]
[314881292,1708613442876,-500.0,0.00019178,2]
[314881294,1708613442886,-500.0,0.00019178,2]
[314881295,1708613442895,-500.0,0.00019178,2]
[314881297,1708613442905,-568.85323718,0.00019178,2]
[314881299,1708613442915,-500.0,0.00019178,2]
[314881301,1708613442925,-173.922206,0.00019178,2]
[314881303,1708613442935,-170.806802,0.00019178,2]
[314881305,1708613442947,-166.666666,0.00019178,2]
[314881307,1708613442956,-153.0,0.000192,2]
[314881309,1708613442966,-172.68598112,0.00019215,2]
[314881311,1708613442975,-172.68598112,0.00019284,2]
[314881313,1708613442984,-172.68598112,0.00019352,2]
[314881316,1708613442993,-300.0,0.00019352,2]
[314881318,1708613443003,-1517.96471576,0.00019451,2]
[314881320,1708613443014,-1389.08,0.00019451,2]
[314881322,1708613443024,-1389.08,0.00019451,2]
[314881324,1708613443034,-1389.08,0.00019451,2]
[314881326,1708613443044,-1389.08,0.00019451,2]
[314881328,1708613443053,-500.0,0.00019452,2]
[314881330,1708613443062,-500.0,0.00019452,2]
[314881332,1708613443071,-500.0,0.00019452,2]
[314881334,1708613443081,-500.0,0.00019452,2]
[314881336,1708613443090,-400.0,0.00019452,2]
[314881338,1708613443100,-500.0,0.00019452,2]
[314881340,1708613443109,-537.83586164,0.00019452,2]
[314881341,1708613443119,-500.0,0.00019452,2]
[314881342,1708613443128,-500.0,0.00019452,2]
[314881344,1708613443137,-500.0,0.00019452,2]
[314881345,1708613443148,-782.95,0.00019452,2]
[314881346,1708613443158,-500.0,0.00019452,2]
[314881347,1708613443169,-500.0,0.00019452,2]
[314881348,1708613443180,-1277.65,0.00019452,2]
[314881349,1708613443189,-500.0,0.00019452,2]
[314881351,1708613443201,-500.0,0.00019452,2]
[314881352,1708613443210,-500.0,0.00019452,2]
[314881353,1708613443221,-500.0,0.00019452,2]
[314881354,1708613443230,-500.0,0.00019452,2]
[314881355,1708613443239,-596.53827503,0.00019452,2]
[314881356,1708613443249,-500.0,0.00019452,2]
[314881357,1708613443258,-500.0,0.00019452,2]
[314881358,1708613443267,-500.0,0.00019452,2]
[314881359,1708613443276,-500.0,0.00019452,2]
[314881360,1708613443285,-2986.75,0.00019452,2]
[314881361,1708613443294,-500.0,0.00019452,2]
[314881362,1708613443303,-3424.2,0.00019452,2]
[314881363,1708613443313,-1500.31,0.00019452,2]
[314881364,1708613443322,-500.0,0.00019452,2]
[314881365,1708613443331,-637.64,0.00019452,2]
[314881366,1708613443340,-528.23713786,0.00019452,2]
[314881367,1708613443349,-627.89,0.00019452,2]
[314881368,1708613443358,-2696.15,0.00019452,2]
[314881369,1708613443368,-1315.96,0.00019452,2]
[314881370,1708613443377,-647.71,0.00019452,2]
[314881371,1708613443387,-562.21,0.00019452,2]
[314881372,1708613443396,-500.0,0.00019452,2]
[314881373,1708613443406,-500.0,0.00019452,2]
[314881374,1708613443415,-500.0,0.00019452,2]
[314881375,1708613443425,-502.82,0.00019452,2]
[314881376,1708613443434,-500.0,0.00019452,2]
[314881377,1708613443443,-500.0,0.00019452,2]
[314881378,1708613443454,-500.0,0.00019452,2]
[314881379,1708613443463,-500.0,0.00019452,2]
[314881380,1708613443473,-500.0,0.00019452,2]
[314881381,1708613443482,-2451.75,0.00019452,2]
[314881382,1708613443491,-500.0,0.00019452,2]
[314881383,1708613443500,-678.33,0.00019452,2]
[314881384,1708613443509,-500.0,0.00019452,2]
[314881385,1708613443519,-559.01,0.00019452,2]
[314881386,1708613443529,-500.0,0.00019452,2]
[314881387,1708613443538,-500.0,0.00019452,2]
[314881388,1708613443548,-500.0,0.00019452,2]
[314881389,1708613443557,-500.0,0.00019452,2]
[314881390,1708613443566,-500.0,0.00019452,2]
[314881391,1708613443575,-794.0,0.00019452,2]
[314881392,1708613443584,-1093.83,0.00019452,2]
[314881393,1708613443594,-500.0,0.00019452,2]
[314881394,1708613443602,-500.0,0.00019452,2]
[314881395,1708613443611,-500.0,0.00019452,2]
[314881396,1708613443621,-5047.79,0.00019452,2]
[314881397,1708613443630,-8890.45,0.00019452,2]
[314881398,1708613443640,-501.09651573,0.00019452,2]
[314881399,1708613443649,-500.0,0.00019452,2]
[314881400,1708613443658,-10082.23,0.00019452,2]
[314881401,1708613443668,-500.0,0.00019452,2]
[314881402,1708613443677,-500.0,0.00019452,2]
[314881403,1708613443686,-4047.37,0.00019452,2]
[314881404,1708613443696,-500.0,0.00019452,2]
[314881405,1708613443705,-2396.7,0.00019452,2]
[314881406,1708613443714,-833.86,0.00019452,2]
[314881407,1708613443723,-500.0,0.00019452,2]
[314881408,1708613443732,-1293.8,0.00019452,2]
[314881409,1708613443741,-500.0,0.00019452,2]
[314881410,1708613443751,-500.0,0.00019452,2]
[314881411,1708613443759,-236.07777895,0.00019452,2]
[314881412,1708613443768,-500.0,0.00019452,2]
[314881413,1708613443778,-642.62,0.00019452,2]
[314881414,1708613443787,-500.0,0.00019452,2]
[314881415,1708613443796,-10568.47,0.00019452,2]
[314881416,1708613443805,-1629.45,0.00019452,2]
[314881417,1708613443813,-500.0,0.00019452,2]
[314881418,1708613443823,-2945.2,0.00019452,2]
[314881419,1708613443833,-1510.22,0.00019452,2]
[314881420,1708613443842,-500.0,0.00019452,2]
[314881421,1708613443851,-500.0,0.00019452,2]
[314881422,1708613443860,-500.0,0.00019452,2]
[314881423,1708613443869,-12314.97,0.00019452,2]
[314881424,1708613443878,-500.0,0.00019452,2]
[314881425,1708613443887,-3219.86,0.00019452,2]
[314881426,1708613443896,-502.30795906,0.00019452,2]
[314881427,1708613443906,-500.0,0.00019452,2]
[314881428,1708613443915,-926.51,0.00019452,2]
[314881429,1708613443925,-500.0,0.00019452,2]
[314881430,1708613443934,-254.21358286,0.00019452,2]
[314881431,1708613443947,-500.0,0.00019452,2]
[314881432,1708613443956,-500.0,0.00019452,2]
[314881433,1708613443965,-500.0,0.00019452,2]
[314881434,1708613443974,-600.48,0.00019452,2]
[314881435,1708613443983,-524.59,0.00019452,2]
[314881436,1708613443992,-2269.9,0.00019452,2]
[314881437,1708613444001,-500.0,0.00019452,2]
[314881438,1708613444011,-945.29,0.00019452,2]
[314881439,1708613444020,-500.0,0.00019452,2]
[314881440,1708613444031,-500.0,0.00019452,2]
[314881441,1708613444040,-500.0,0.00019452,2]
[314881442,1708613444049,-501.87141753,0.00019452,2]
[314881443,1708613444059,-1648.75,0.00019452,2]
[314881444,1708613444068,-500.0,0.00019452,2]
[314881445,1708613444078,-627.65,0.00019452,2]
[314881446,1708613444087,-418.83975766,0.00019452,2]
[314881447,1708613444097,-501.19258491,0.00019452,2]
[314881448,1708613444107,-301.8299324,0.000195,2]
[314881449,1708613444117,-155.0776582,0.000195,2]
[314881450,1708613444127,-295.0020964,0.000195,2]
[314881451,1708613444136,-155.0617264,0.000195,2]
[314881452,1708613444146,-306.0,0.000195,2]
[314881453,1708613444160,-300.0,0.00019526,2]
[314881454,1708613444170,-580.0,0.000196,2]
[314881455,1708613444180,-12798.00727783,0.00019626,2]
[314881456,1708613444189,-166.666666,0.00019627,2]
[314881457,1708613444202,-300.0,0.00019701,2]
[314881458,1708613444211,-1589.90722971,0.00019724,2]
[314881459,1708613444220,-388.46296932,0.00019724,2]
[314881460,1708613444229,-1389.08,0.00019724,2]
[314881461,1708613444238,-270.01718545,0.00019725,2]
[314881462,1708613444250,-1389.08,0.00019725,2]
[314881463,1708613444259,-1389.08,0.00019725,2]
[314881464,1708613444268,-1389.08,0.00019725,2]
[314881465,1708613444278,-500.0,0.00019726,2]
[314881466,1708613444287,-577.02370841,0.00019726,2]
[314881467,1708613444296,-500.0,0.00019726,2]
[314881468,1708613444305,-500.0,0.00019726,2]
[314881469,1708613444315,-500.0,0.00019726,2]
[314881470,1708613444324,-500.0,0.00019726,2]
[314881471,1708613444333,-500.0,0.00019726,2]
[314881472,1708613444342,-500.0,0.00019726,2]
[314881473,1708613444352,-782.95,0.00019726,2]
[314881474,1708613444361,-500.0,0.00019726,2]
[314881475,1708613444370,-1277.65,0.00019726,2]
[314881476,1708613444379,-500.0,0.00019726,2]
[314881478,1708613444388,-500.0,0.00019726,2]
[314881479,1708613444397,-500.0,0.00019726,2]
[314881480,1708613444407,-500.0,0.00019726,2]
[314881482,1708613444416,-501.88019527,0.00019726,2]
[314881483,1708613444425,-500.0,0.00019726,2]
[314881484,1708613444434,-500.0,0.00019726,2]
[314881485,1708613444444,-500.0,0.00019726,2]
[314881487,1708613444454,-2986.75,0.00019726,2]
[314881488,1708613444464,-416.45003183,0.00019726,2]
[314881489,1708613444473,-3424.2,0.00019726,2]
[314881490,1708613444482,-1500.31,0.00019726,2]
[314881491,1708613444492,-369.27,0.00019726,2]
[314881492,1708613444501,-637.64,0.00019726,2]
[314881493,1708613444510,-627.89,0.00019726,2]
[314881494,1708613444519,-2696.15,0.00019726,2]
[314881495,1708613444529,-1315.96,0.00019726,2]
[314881496,1708613444538,-562.21,0.00019726,2]
[314881497,1708613444547,-630.45135169,0.00019726,2]
[314881498,1708613444649,-500.0,0.00019726,2]
[314881499,1708613444660,-500.0,0.00019726,2]
[314881500,1708613444670,-502.82,0.00019726,2]
[314881501,1708613444679,-500.0,0.00019726,2]
[314881502,1708613444689,-500.0,0.00019726,2]
[314881503,1708613444700,-500.0,0.00019726,2]
[314881504,1708613444709,-2451.75,0.00019726,2]
[314881505,1708613444718,-500.0,0.00019726,2]
[314881506,1708613444727,-678.33,0.00019726,2]
[314881507,1708613444736,-500.0,0.00019726,2]
[314881508,1708613444745,-500.0,0.00019726,2]
[314881509,1708613444754,-500.0,0.00019726,2]
[314881510,1708613444763,-500.0,0.00019726,2]
[314881512,1708613444772,-500.0,0.00019726,2]
[314881513,1708613444781,-500.0,0.00019726,2]
[314881514,1708613444790,-794.0,0.00019726,2]
[314881515,1708613444800,-1093.83,0.00019726,2]
[314881517,1708613444809,-500.0,0.00019726,2]
[314881518,1708613444817,-500.0,0.00019726,2]
[314881519,1708613444826,-5047.79,0.00019726,2]
[314881520,1708613444836,-8890.45,0.00019726,2]
[314881522,1708613444844,-10082.23,0.00019726,2]
[314881524,1708613444853,-500.0,0.00019726,2]
[314881526,1708613444862,-500.0,0.00019726,2]
[314881528,1708613444871,-4047.37,0.00019726,2]
[314881530,1708613444880,-500.0,0.00019726,2]
[314881532,1708613444889,-2396.7,0.00019726,2]
[314881534,1708613444899,-833.86,0.00019726,2]
[314881536,1708613444908,-500.0,0.00019726,2]
[314881538,1708613444917,-1293.8,0.00019726,2]
[314881540,1708613444926,-500.0,0.00019726,2]
[314881542,1708613444937,-500.0,0.00019726,2]
[314881544,1708613444948,-500.0,0.00019726,2]
[314881546,1708613444956,-642.62,0.00019726,2]
[314881548,1708613444965,-500.0,0.00019726,2]
[314881550,1708613444975,-10568.47,0.00019726,2]
[314881552,1708613444984,-1629.45,0.00019726,2]
[314881554,1708613444992,-2945.2,0.00019726,2]
[314881556,1708613445001,-1510.22,0.00019726,2]
[314881558,1708613445011,-500.0,0.00019726,2]
[314881560,1708613445021,-569.71,0.00019726,2]
[314881562,1708613445030,-500.0,0.00019726,2]
[314881564,1708613445039,-12314.97,0.00019726,2]
[314881566,1708613445048,-500.0,0.00019726,2]
[314881568,1708613445058,-3219.86,0.00019726,2]
[314881570,1708613445067,-500.0,0.00019726,2]
[314881572,1708613445076,-926.51,0.00019726,2]
[314881574,1708613445085,-500.0,0.00019726,2]
[314881576,1708613445094,-500.0,0.00019726,2]
[314881578,1708613445103,-500.0,0.00019726,2]
[314881580,1708613445112,-512.68,0.00019726,2]
[314881582,1708613445121,-600.48,0.00019726,2]
[314881584,1708613445131,-2269.9,0.00019726,2]
[314881586,1708613445140,-515.55018952,0.00019726,2]
[314881588,1708613445149,-945.29,0.00019726,2]
[314881590,1708613445159,-500.0,0.00019726,2]
[314881591,1708613445168,-506.51,0.00019726,2]
[314881593,1708613445180,-500.0,0.00019726,2]
[314881596,1708613445189,-1648.75,0.00019726,2]
[314881598,1708613445201,-500.0,0.00019726,2]
[314881599,1708613445210,-627.65,0.00019726,2]
[314881602,1708613445221,-300.0,0.00019876,2]
[314881604,1708613445230,-2505.33824187,0.00019899,2]
[314881605,1708613445239,-2324.90282048,0.00019899,2]
[314881608,1708613445249,-4850.90530175,0.000199,2]
[314881610,1708613445259,-1687.06221443,0.0001996,2]
[314881616,1708613445310,-6539.70583748,0.0001996,2]
[314881618,1708613445320,-1389.08,0.00019998,2]
[314881620,1708613445329,-155.35037778,0.00019999,2]
[314881622,1708613445338,-166.57013905,0.00019999,2]
[314881624,1708613445347,-1389.08,0.00019999,2]
[314881626,1708613445356,-1389.08,0.00019999,2]
[314881628,1708613445365,-1389.08,0.00019999,2]
[314881630,1708613445375,-1389.08,0.00019999,2]
[314881632,1708613445384,-409.83575235,0.00019999,2]
[314881723,1708613658291,250.0,0.00017383,2]
[314881726,1708614101154,9873.8307564,0.0001767,2]
[314881727,1708614123752,159.92692077,0.0001763,2]
[314881728,1708614308858,5000.0,0.00029,30]
[314881729,1708614445204,2397.5439735,0.00017374,2]
[314881730,1708614448922,500.0,0.000177,5]
[314881731,1708614454066,500.0,0.00018,5]
[314881732,1708614485127,499.68452371,0.00021088,14]
[314881733,1708614485150,8693.91313575,0.00021088,14]
[314881742,1708614582721,24900.0,0.00017503,2]
[314881792,1708614632570,-703.9086041,0.00017708,2]
[314881794,1708614632581,-273.7273831,0.00017709,2]
[314881796,1708614632590,-281.28625655,0.00017709,2]
[314881798,1708614632599,-3269.14024649,0.0001771,2]
[314881845,1708614638522,-1555.52951616,0.0001771,2]
[314881846,1708614638533,-300.0,0.00017712,2]
[314881847,1708614638543,-155.09771156,0.0001775,3]
[314881848,1708614638552,-725.64027792,0.000189,2]
[314881849,1708614638561,-27980.42126836,0.00019076,2]
[314881850,1708614638573,-8168.09021104,0.00019076,2]
[314881851,1708614638583,-155.08374522,0.00019077,2]
[314881852,1708614638591,-2487.80521297,0.00019078,2]
[314881887,1708614642409,-6267.55355621,0.00019078,2]
[314881888,1708614642420,-3606.27720025,0.00019078,2]
[314881889,1708614642433,-312.2633,0.00019078,2]
[314881890,1708614642445,-991.39679073,0.00019078,2]
[314881904,1708614643600,-4859.84299656,0.00019078,2]
[314881916,1708614646654,-11820.39999994,0.00019078,2]
[314881918,1708615119754,401.30380977,0.00021,14]
[314881921,1708615370795,501.147413,0.00017718,2]
[314881930,1708615515928,-160.0,0.00028498,30]
[314881931,1708615517773,228.5499748,0.00017712,2]
[314881933,1708615614340,703.9086041,0.000178,2]
[314881934,1708615634710,217.0,0.000178,2]
[314881937,1708615749233,703.9086041,0.000178,2]
[314881970,1708615831748,-281.28625655,0.00017801,2]
[314881972,1708615831757,-4824.66976265,0.00017801,2]
[314881974,1708615831767,-20446.978684,0.00017802,2]
[314881976,1708615831776,-703.9086041,0.00018017,2]
[314881979,1708615831795,-381.6584662,0.00018018,2]
[314881981,1708615831806,-694.01476469,0.000189,2]
[314881983,1708615831815,-1480.9284588,0.00019,2]
[314881984,1708615831824,-249.49228194,0.00019076,2]
[314881986,1708615831835,-196.76625051,0.00019078,2]
[314881988,1708615831845,-753.57651019,0.00019078,2]
[314882001,1708615837715,-217.94026325,0.00019078,2]
[314882002,1708615837725,-4628.92687109,0.00019084,2]
[314882003,1708615837736,-6392.86087435,0.00019084,2]
[314882006,1708615840949,-2023.42970921,0.00019084,2]
[314882007,1708615840964,-18223.19273923,0.00019084,2]
[314882008,1708615840973,-153.0,0.000191,2]
[314882009,1708615840981,-26.93383828,0.00019177,2]
[314882010,1708615840998,-128.27414041,0.00019177,2]
[314882011,1708615841007,-500.0,0.00019178,2]
[314882012,1708615841017,-500.0,0.00019178,2]
[314882013,1708615841028,-500.0,0.00019178,2]
[314882014,1708615841037,-500.0,0.00019178,2]
[314882015,1708615841046,-56.11936387,0.00019178,2]
[314882016,1708615841063,-443.88063613,0.00019178,2]
[314882017,1708615841072,-593.54,0.00019178,2]
[314882018,1708615841081,-500.75462063,0.00019178,2]
[314882019,1708615841090,-500.0,0.00019178,2]
[314882020,1708615841099,-500.0,0.00019178,2]
[314882021,1708615841108,-500.0,0.00019178,2]
[314882022,1708615841116,-282.45754295,0.00019178,2]
[314882023,1708615841131,-142.91224881,0.00019178,2]
[314882024,1708615841140,-500.0,0.00019178,2]
[314882025,1708615841149,-500.0,0.00019178,2]
[314882026,1708615841157,-500.0,0.00019178,2]
[314882027,1708615841166,-500.0,0.00019178,2]
[314882028,1708615841175,-500.0,0.00019178,2]
[314882029,1708615841183,-810.7,0.00019178,2]
[314882030,1708615841193,-500.0,0.00019178,2]
[314882031,1708615841202,-500.0,0.00019178,2]
[314882032,1708615841210,-500.0,0.00019178,2]
[314882033,1708615841219,-500.0,0.00019178,2]
[314882034,1708615841228,-1442.66,0.00019178,2]
[314882035,1708615841238,-500.0,0.00019178,2]
[314882036,1708615841247,-500.0,0.00019178,2]
[314882037,1708615841256,-28.77536564,0.00019178,2]
[314882041,1708615842793,-471.22463436,0.00019178,2]
[314882042,1708615842803,-500.0,0.00019178,2]
[314882043,1708615842814,-500.0,0.00019178,2]
[314882044,1708615842823,-500.0,0.00019178,2]
[314882045,1708615842835,-827.13,0.00019178,2]
[314882046,1708615842845,-500.0,0.00019178,2]
[314882047,1708615842855,-500.0,0.00019178,2]
[314882048,1708615842865,-500.0,0.00019178,2]
[314882049,1708615842876,-379.6509021,0.00019178,2]
[314882064,1708616236507,2653.2389691,0.00017727,2]
[314882065,1708616274886,7043.01100165,0.00017,4]
[314882066,1708616274928,521580.74962248,0.00017,4]
[314882067,1708616274966,19000.0,0.00017,4]
[314882068,1708616275004,19000.0,0.00017,4]
[314882069,1708616275043,19000.0,0.00017,4]
[314882070,1708616275079,19000.0,0.00017,4]
[314882071,1708616275120,19000.0,0.00017,4]
[314882072,1708616275156,9000.0,0.00017,4]
[314882073,1708616275194,19000.0,0.00017,4]
[314882074,1708616275235,9000.0,0.00017,4]
[314882075,1708616275270,19000.0,0.00017,4]
[314882076,1708616310318,-289.92933338,0.00016998,2]
[314882077,1708616310340,-4824.66976265,0.00016999,2]
[314882078,1708616310362,-703.9086041,0.00016999,2]
[314882079,1708616310388,-167364.49229987,0.00017,4]
[314882131,1708617031927,-703.9086041,0.00017105,2]
[314882133,1708617031936,-207.401662,0.00017106,2]
[314882135,1708617031946,-281.28625655,0.00017309,2]
[314882137,1708617031955,-4824.66976265,0.00017309,2]
[314882139,1708617031964,-3411.68160048,0.0001731,2]
[314882141,1708617031973,-10334.8239947,0.0001741,2]
[314882142,1708617031982,-4915.3898828,0.00017682,2]
[314882144,1708617031991,-289.92933338,0.00018028,2]
[314882148,1708617032000,-711.0475151,0.000189,2]
[314882151,1708617032009,-153.0,0.000189,2]
[314882155,1708617032018,-38723.91078115,0.00019078,2]
[314882158,1708617032027,-500.0,0.00019178,2]
[314882161,1708617032036,-500.0,0.00019178,2]
[314882164,1708617032045,-500.0,0.00019178,2]
[314882167,1708617032054,-500.0,0.00019178,2]
[314882170,1708617032063,-792.67,0.00019178,2]
[314882173,1708617032072,-500.0,0.00019178,2]
[314882176,1708617032081,-500.0,0.00019178,2]
[314882179,1708617032091,-500.0,0.00019178,2]
[314882182,1708617032100,-421.29396301,0.00019178,2]
[314882185,1708617032109,-500.0,0.00019178,2]
[314882187,1708617032118,-500.0,0.00019178,2]
[314882189,1708617032127,-500.0,0.00019178,2]
[314882191,1708617032136,-500.0,0.00019178,2]
[314882193,1708617032145,-500.0,0.00019178,2]
[314882194,1708617032154,-500.0,0.00019178,2]
[314882195,1708617032163,-500.0,0.00019178,2]
[314882196,1708617032172,-333.85812975,0.00019178,2]
[314882197,1708617032182,-500.0,0.00019178,2]
[314882199,1708617032191,-500.0,0.00019178,2]
[314882201,1708617032200,-500.0,0.00019178,2]
[314882203,1708617032210,-500.0,0.00019178,2]
[314882205,1708617032219,-500.0,0.00019178,2]
[314882206,1708617032230,-151.115116,0.00019178,2]
[314882207,1708617032239,-500.0,0.00019178,2]
[314882208,1708617032248,-290.96682888,0.00019178,2]
[314882210,1708617032258,-500.0,0.00019178,2]
[314882211,1708617032267,-151.0,0.00019178,2]
[314882212,1708617032278,-290.34416651,0.00019178,2]
[314882213,1708617032288,-500.0,0.00019178,2]
[314882214,1708617032297,-500.0,0.00019178,2]
[314882215,1708617032306,-782.88,0.00019178,2]
[314882216,1708617032316,-500.0,0.00019178,2]
[314882217,1708617032326,-500.0,0.00019178,2]
[314882218,1708617032338,-500.0,0.00019178,2]
[314882219,1708617032347,-500.0,0.00019178,2]
[314882220,1708617032357,-500.0,0.00019178,2]
[314882221,1708617032366,-546.95093516,0.00019178,2]
[314882222,1708617032375,-500.0,0.00019178,2]
[314882223,1708617032384,-500.0,0.00019178,2]
[314882224,1708617032393,-500.0,0.00019178,2]
[314882225,1708617032402,-500.0,0.00019178,2]
[314882226,1708617032413,-1158.54,0.00019178,2]
[314882227,1708617032423,-643.51,0.00019178,2]
[314882228,1708617032432,-500.60919169,0.00019178,2]
[314882229,1708617032442,-500.0,0.00019178,2]
[314882230,1708617032451,-500.0,0.00019178,2]
[314882231,1708617032460,-500.0,0.00019178,2]
[314882232,1708617032470,-500.0,0.00019178,2]
[314882233,1708617032479,-500.0,0.00019178,2]
[314882234,1708617032489,-1524.71,0.00019178,2]
[314882235,1708617032499,-500.0,0.00019178,2]
[314882236,1708617032509,-500.0,0.00019178,2]
[314882237,1708617032518,-500.0,0.00019178,2]
[314882238,1708617032527,-500.0,0.00019178,2]
[314882239,1708617032537,-500.0,0.00019178,2]
[314882240,1708617032546,-500.0,0.00019178,2]
[314882241,1708617032556,-500.0,0.00019178,2]
[314882242,1708617032565,-500.0,0.00019178,2]
[314882243,1708617032575,-500.0,0.00019178,2]
[314882244,1708617032585,-500.0,0.00019178,2]